Workbook

Sheet Produktionsanlæg
A1: Produktionsanlæg | B1: Enhed | C1: Standard-levetid | D1: Samlet mængde per 31/12-2014 | E1: Samlet mængde per 31/12-2015 | F1: Bemærk-ninger
A3: Boringer
A4: Boring (inkl. etablering, forerør, filter og prøvepumpning) | B4: dybdemeter | C4: 30 | D4: 2154 | E4: 2154
A5: Råvandsstationer
A6: Råvandsstation komplet montering og boringshus/tørbrønd | B6: stk. | C6: 30 | D6: 27 | E6: 27
A7: Instrumenter (flowmåler+tryk transducer+alarmer) | B7: stk. | C7: 10 | D7: 24 | E7: 24
A8: Pumpe inkl. stigrør og forerørsforsejlinger mv. - 1 | B8: m³/h | C8: 15 | D8: 60 | E8: 60 | F8: DGU 121-589 boring 1
A9: Pumpe inkl. stigrør og forerørsforsejlinger mv. - 2 | B9: m³/h | C9: 15 | D9: 45 | E9: 45 | F9: DGU 121-183 boring 2
A10: Pumpe inkl. stigrør og forerørsforsejlinger mv. - 3 | B10: m³/h | C10: 15 | D10: 30 | E10: 30 | F10: DGU 121-1500 boring3
A11: Pumpe inkl. stigrør og forerørsforsejlinger mv. - 4 | B11: m³/h | C11: 15 | D11: 30 | E11: 30 | F11: DGU 121-977 boring 4
A12: Pumpe inkl. stigrør og forerørsforsejlinger mv. - 5 | B12: m³/h | C12: 15 | D12: 46 | E12: 60 | F12: DGU 121-906 boring 5
A13: Pumpe inkl. stigrør og forerørsforsejlinger mv. - 6 | B13: m³/h | C13: 15 | D13: 27 | E13: 17 | F13: DGU 121-1046 boring 6
A14: Pumpe inkl. stigrør og forerørsforsejlinger mv. - 7 | B14: m³/h | C14: 15 | D14: 30 | E14: 30 | F14: DGU 121-947 boring 8
A15: Pumpe inkl. stigrør og forerørsforsejlinger mv. - 8 | B15: m³/h | C15: 15 | D15: 30 | E15: 30 | F15: DGU 121-1374 boring 9 (overboring af 12.437)
A16: Pumpe inkl. stigrør og forerørsforsejlinger mv. - 9 | B16: m³/h | C16: 15 | D16: 30 | E16: 30 | F16: DGU 121-438 boring 10
A17: Pumpe inkl. stigrør og forerørsforsejlinger mv. - 10 | B17: m³/h | C17: 15 | D17: 30 | E17: 30 | F17: DGU 121-1165 boring 11
A18: Pumpe inkl. stigrør og forerørsforsejlinger mv. - 11 | B18: m³/h | C18: 15 | D18: 46 | E18: 17 | F18: DGU 121-1562
A19: Pumpe inkl. stigrør og forerørsforsejlinger mv. - 12 | B19: m³/h | C19: 15 | D19: 17 | E19: 17 | F19: DGU 121-1563
A20: Pumpe inkl. stigrør og forerørsforsejlinger mv. - 13 | B20: m³/h | C20: 15 | D20: 7 | E20: 40 | F20: Afværgeboring 9- DGU 121-1374
A21: Pumpe inkl. stigrør og forerørsforsejlinger mv. - 14 | B21: m³/h | C21: 15 | D21: 7 | E21: 40 | F21: Afværgeboring 11 DGU 121-1165
A22: Pumpe inkl. stigrør og forerørsforsejlinger mv. - 15 | B22: m³/h | C22: 15 | D22: 7 | E22: 7 | F22: Afværgeboring 12 DGU 121.1015
A23: Pumpe inkl. stigrør og forerørsforsejlinger mv. - 16 | B23: m³/h | C23: 15 | D23: 7 | E23: 7 | F23: Afværgeboring 13 DGU 121.644
A24: Pumpe inkl. stigrør og forerørsforsejlinger mv. - 17 | B24: m³/h | C24: 15 | D24: 30 | E24: 30 | F24: DGU 121-648 boring 1
A25: Pumpe inkl. stigrør og forerørsforsejlinger mv. - 18 | B25: m³/h | C25: 15 | D25: 70 | E25: 70 | F25: DGU 121-649 boring 2
A26: Pumpe inkl. stigrør og forerørsforsejlinger mv. - 19 | B26: m³/h | C26: 15 | D26: 30 | E26: 30 | F26: DGU 112-597 foran v.værk
A27: Pumpe inkl. stigrør og forerørsforsejlinger mv. - 20 | B27: m³/h | C27: 15 | D27: 30 | E27: 30 | F27: DGU 112-959 mark tættest vej
A28: Pumpe inkl. stigrør og forerørsforsejlinger mv. - 21 | B28: m³/h | C28: 15 | D28: 30 | E28: 30 | F28: DGU 112-960 mark længst væk
A29: Pumpe inkl. stigrør og forerørsforsejlinger mv. - 22 | B29: m³/h | C29: 15 | D29: 30 | E29: 30 | F29: DGU 112-1027 bag v.værk
A30: Erstatninger (OBS ingen øst-tillæg eller øvrige tillæg) | B30: stk. | C30: 30 | D30: 0 | E30: 0
A31: Hegn | B31: stk. | C31: 15 | D31: 0 | E31: 0
A32: Elanlæg | B32: boring | C32: 20 | D32: 26 | E32: 26
A33: SRO anlæg | B33: boring | C33: 10 | D33: 7 | E33: 7
A34: Råvandsledninger - Land
A35: Ø 50mm < Ledningsnet ≤ Ø110 mm | B35: meter | C35: 75 | D35: 308.5 | E35: 308.5
A36: Ø110 mm < Ledningsnet ≤ Ø 250 mm | B36: meter | C36: 75 | D36: 321.3 | E36: 321.3
A37: Ø 250 mm < Ledningsnet ≤ Ø 500mm | B37: meter | C37: 75 | D37: 2550 | E37: 2550
A38: Ledningsnet > Ø 500 mm | B38: meter | C38: 75 | D38: 436.55 | E38: 436.55
A39: Råvandsledninger - By
A40: Ø 50mm < Ledningsnet ≤ Ø110 mm | B40: meter | C40: 75 | D40: 124.4 | E40: 124.4
A41: Ø110 mm < Ledningsnet ≤ Ø 250 mm | B41: meter | C41: 75 | D41: 743.7 | E41: 743.7
A42: Ø 250 mm < Ledningsnet ≤ Ø 500mm | B42: meter | C42: 75 | D42: 4281.6 | E42: 4281.6
A43: Ledningsnet > Ø 500 mm | B43: meter | C43: 75 | D43: 0 | E43: 0
A44: Råvandsledninger - City
A45: Ø 50mm < Ledningsnet ≤ Ø110 mm | B45: meter | C45: 75 | D45: 0 | E45: 0
A46: Ø110 mm < Ledningsnet ≤ Ø 250 mm | B46: meter | C46: 75 | D46: 0 | E46: 0
A47: Ø 250 mm < Ledningsnet ≤ Ø 500mm | B47: meter | C47: 75 | D47: 0 | E47: 0
A48: Ledningsnet > Ø 500 mm | B48: meter | C48: 75 | D48: 0 | E48: 0
A49: Vandværk 1
A50: Beluftningsanlæg, iltningstrappe, Konstruktioner | B50: m³/h | C50: 50 | D50: 120 | E50: 120
A51: Beluftningsanlæg, iltningstrappe, Mek./EL | B51: m³/h | C51: 25 | D51: 120 | E51: 120
A52: Beluftningsanlæg, ika-beluftning, Konstruktioner | B52: m³/h | C52: 50 | D52: 0 | E52: 0
A53: Beluftningsanlæg, ika-beluftning, Mek./EL | B53: m³/h | C53: 25 | D53: 0 | E53: 0
A54: Beluftningsanlæg, bundbeluftbning, Konstruktioner | B54: m³/h | C54: 50 | D54: 0 | E54: 0
A55: Beluftningsanlæg, bundbeluftbning, Mek./EL | B55: m³/h | C55: 25 | D55: 0 | E55: 0
A56: Beluftningsanlæg, rislebakke, Konstruktioner | B56: m³/h | C56: 50 | D56: 0 | E56: 0
A57: Beluftningsanlæg, rislebakke, Mek./EL | B57: m³/h | C57: 25 | D57: 0 | E57: 0
A58: Beluftningsanlæg, kompressorbeluftning | B58: m³/h | C58: 25 | D58: 0 | E58: 0
A59: Beluftningsanlæg, ren ilt | B59: m³/h | C59: 25 | D59: 0 | E59: 0
A60: Behandlingsanlæg, kalk anlæg | B60: m³/h | C60: 25 | D60: 120 | E60: 120
A61: Behandlingsanlæg, luddosering | B61: m³/h | C61: 25 | D61: 0 | E61: 0
A62: Filteranlæg, åbne filtre, enkelt filtrering, Konstruktioner | B62: m³/h | C62: 50 | D62: 0 | E62: 0
A63: Filteranlæg, åbne filtre, enkelt filtrering, Mek./EL | B63: m³/h | C63: 25 | D63: 0 | E63: 0
A64: Filteranlæg, åbne filtre, dobbelt filtrering, Konstruktioner | B64: m³/h | C64: 50 | D64: 120 | E64: 120
A65: Filteranlæg, åbne filtre, dobbelt filtrering, Mek./EL | B65: m³/h | C65: 25 | D65: 120 | E65: 120
A66: Filteranlæg, trykfiltre, enkelt filtrering | B66: m³/h | C66: 25 | D66: 0 | E66: 0
A67: Filteranlæg, trykfiltre, dobbelt filtrering | B67: m³/h | C67: 25 | D67: 0 | E67: 0
A68: Rentvandsbeholder insitu støbt | B68: m³ | C68: 50 | D68: 100 | E68: 100
A69: Rentvandsbeholder element | B69: m³ | C69: 50 | D69: 0 | E69: 0
A70: Udpumpningsanlæg, rentvandspumper på vandværk | B70: m³/h | C70: 25 | D70: 120 | E70: 120
A71: Udpumpningsanlæg, frekvensomformer | B71: kW | C71: 25 | D71: 32 | E71: 32
A72: Udpumpningsanlæg, Hydrofor | B72: liter | C72: 25 | D72: 0 | E72: 0
A73: Skyllevand-/slamhåndteringsanlæg - lukkede betonbeholdere | B73: m³ | C73: 50 | D73: 0 | E73: 0
A74: Skyllevand-/slamhåndteringsanl. - åbne med faste sider/bund | B74: m³ | C74: 50 | D74: 0 | E74: 0
A75: Skyllevand-/slamhåndteringsanlæg - jordbassiner | B75: m³ | C75: 50 | D75: 0 | E75: 0
A76: Skyllevandsbehandling, inkl. UV-filter mv., Mek./EL | B76: m³/h. | C76: 25 | D76: 0 | E76: 0
A77: Skyllevandsbehandling, inkl. UV-filter mv., SRO | B77: m³/h. | C77: 10 | D77: 0 | E77: 0
A78: Nødstrømsanlæg på vandværk | B78: kW | C78: 25 | D78: 0 | E78: 0
A79: Elanlæg og SRO-anlæg - vandværk, Elanlæg | B79: m³/h. | C79: 25 | D79: 120 | E79: 120
A80: Elanlæg og SRO-anlæg - vandværk, SRO | B80: m³/h. | C80: 10 | D80: =120+500 -> 620 | E80: =120+500 -> 620
A81: Vandværk 2
A82: Beluftningsanlæg, iltningstrappe, Konstruktioner | B82: m³/h | C82: 50 | D82: =390+390 -> 780 | E82: =390+390 -> 780
A83: Beluftningsanlæg, iltningstrappe, Mek./EL | B83: m³/h | C83: 25 | D83: =390+390 -> 780 | E83: =390+390 -> 780
A84: Beluftningsanlæg, ika-beluftning, Konstruktioner | B84: m³/h | C84: 50 | D84: 0 | E84: 0
A85: Beluftningsanlæg, ika-beluftning, Mek./EL | B85: m³/h | C85: 25 | D85: 0 | E85: 0
A86: Beluftningsanlæg, bundbeluftbning, Konstruktioner | B86: m³/h | C86: 50 | D86: 0 | E86: 0
A87: Beluftningsanlæg, bundbeluftbning, Mek./EL | B87: m³/h | C87: 25 | D87: 0 | E87: 0
A88: Beluftningsanlæg, rislebakke, Konstruktioner | B88: m³/h | C88: 50 | D88: 0 | E88: 0
A89: Beluftningsanlæg, rislebakke, Mek./EL | B89: m³/h | C89: 25 | D89: 0 | E89: 0
A90: Beluftningsanlæg, kompressorbeluftning | B90: m³/h | C90: 25 | D90: 0 | E90: 0
A91: Beluftningsanlæg, ren ilt | B91: m³/h | C91: 25 | D91: 0 | E91: 0
A92: Behandlingsanlæg, kalk anlæg | B92: m³/h | C92: 25 | D92: 780 | E92: 780
A93: Behandlingsanlæg, luddosering | B93: m³/h | C93: 25 | D93: 0 | E93: 0
A94: Filteranlæg, åbne filtre, enkelt filtrering, Konstruktioner | B94: m³/h | C94: 50 | D94: 0 | E94: 0
A95: Filteranlæg, åbne filtre, enkelt filtrering, Mek./EL | B95: m³/h | C95: 25 | D95: 0 | E95: 0
A96: Filteranlæg, åbne filtre, dobbelt filtrering, Konstruktioner | B96: m³/h | C96: 50 | D96: 780 | E96: 780
A97: Filteranlæg, åbne filtre, dobbelt filtrering, Mek./EL | B97: m³/h | C97: 25 | D97: =390+390 -> 780 | E97: =390+390 -> 780
A98: Filteranlæg, trykfiltre, enkelt filtrering | B98: m³/h | C98: 25 | D98: 0 | E98: 0
A99: Filteranlæg, trykfiltre, dobbelt filtrering | B99: m³/h | C99: 25 | D99: 0 | E99: 0
A100: Rentvandsbeholder insitu støbt | B100: m³ | C100: 50 | D100: =3000 -> 3000 | E100: =3000 -> 3000
A101: Rentvandsbeholder element | B101: m³ | C101: 50 | D101: 0 | E101: 0
A102: Udpumpningsanlæg, rentvandspumper på vandværk | B102: m³/h | C102: 25 | D102: =390+390 -> 780 | E102: =390+390 -> 780
A103: Udpumpningsanlæg, frekvensomformer | B103: kW | C103: 25 | D103: =81+113 -> 194 | E103: =81+113 -> 194
A104: Udpumpningsanlæg, Hydrofor | B104: liter | C104: 25 | D104: 9000 | E104: 9000
A105: Skyllevand-/slamhåndteringsanlæg - lukkede betonbeholdere | B105: m³ | C105: 50 | D105: 258 | E105: 258
A106: Skyllevand-/slamhåndteringsanl. - åbne med faste sider/bund | B106: m³ | C106: 50 | D106: 0 | E106: 0
A107: Skyllevand-/slamhåndteringsanlæg - jordbassiner | B107: m³ | C107: 50 | D107: 0 | E107: 0
A108: Skyllevandsbehandling, inkl. UV-filter mv., Mek./EL | B108: m³/h. | C108: 25 | D108: 0 | E108: 650
A109: Skyllevandsbehandling, inkl. UV-filter mv., SRO | B109: m³/h. | C109: 10 | D109: 0 | E109: 650
A110: Nødstrømsanlæg på vandværk | B110: kW | C110: 25 | D110: 182 | E110: 182
A111: Elanlæg og SRO-anlæg - vandværk, Elanlæg | B111: m³/h. | C111: 25 | D111: =780+390 -> 1170 | E111: =780+390 -> 1170
A112: Elanlæg og SRO-anlæg - vandværk, SRO | B112: m³/h. | C112: 10 | D112: =780+390 -> 1170 | E112: =780+390 -> 1170
A113: Vandværk 3
A114: Beluftningsanlæg, iltningstrappe, Konstruktioner | B114: m³/h | C114: 50 | D114: 70 | E114: 70
A115: Beluftningsanlæg, iltningstrappe, Mek./EL | B115: m³/h | C115: 25 | D115: 70 | E115: 70
A116: Beluftningsanlæg, ika-beluftning, Konstruktioner | B116: m³/h | C116: 50 | D116: 0 | E116: 0
A117: Beluftningsanlæg, ika-beluftning, Mek./EL | B117: m³/h | C117: 25 | D117: 0 | E117: 0
A118: Beluftningsanlæg, bundbeluftbning, Konstruktioner | B118: m³/h | C118: 50 | D118: 0 | E118: 0
A119: Beluftningsanlæg, bundbeluftbning, Mek./EL | B119: m³/h | C119: 25 | D119: 0 | E119: 0
A120: Beluftningsanlæg, rislebakke, Konstruktioner | B120: m³/h | C120: 50 | D120: 0 | E120: 0
A121: Beluftningsanlæg, rislebakke, Mek./EL | B121: m³/h | C121: 25 | D121: 0 | E121: 0
A122: Beluftningsanlæg, kompressorbeluftning | B122: m³/h | C122: 25 | D122: 0 | E122: 0
A123: Beluftningsanlæg, ren ilt | B123: m³/h | C123: 25 | D123: 0 | E123: 0
A124: Behandlingsanlæg, kalk anlæg | B124: m³/h | C124: 25 | D124: 0 | E124: 0
A125: Behandlingsanlæg, luddosering | B125: m³/h | C125: 25 | D125: 0 | E125: 0
A126: Filteranlæg, åbne filtre, enkelt filtrering, Konstruktioner | B126: m³/h | C126: 50 | D126: 0 | E126: 0
A127: Filteranlæg, åbne filtre, enkelt filtrering, Mek./EL | B127: m³/h | C127: 25 | D127: 0 | E127: 0
A128: Filteranlæg, åbne filtre, dobbelt filtrering, Konstruktioner | B128: m³/h | C128: 50 | D128: 70 | E128: 70
A129: Filteranlæg, åbne filtre, dobbelt filtrering, Mek./EL | B129: m³/h | C129: 25 | D129: 70 | E129: 70
A130: Filteranlæg, trykfiltre, enkelt filtrering | B130: m³/h | C130: 25 | D130: 0 | E130: 0
A131: Filteranlæg, trykfiltre, dobbelt filtrering | B131: m³/h | C131: 25 | D131: 4 | E131: 4
A132: Rentvandsbeholder insitu støbt | B132: m³ | C132: 50 | D132: 300 | E132: 300
A133: Rentvandsbeholder element | B133: m³ | C133: 50 | D133: 0 | E133: 0
A134: Udpumpningsanlæg, rentvandspumper på vandværk | B134: m³/h | C134: 25 | D134: 70 | E134: 70
A135: Udpumpningsanlæg, frekvensomformer | B135: kW | C135: 25 | D135: 9 | E135: 9
A136: Udpumpningsanlæg, Hydrofor | B136: liter | C136: 25 | D136: 0 | E136: 0
A137: Skyllevand-/slamhåndteringsanlæg - lukkede betonbeholdere | B137: m³ | C137: 50 | D137: 40 | E137: 40
A138: Skyllevand-/slamhåndteringsanl. - åbne med faste sider/bund | B138: m³ | C138: 50 | D138: 0 | E138: 0
A139: Skyllevand-/slamhåndteringsanlæg - jordbassiner | B139: m³ | C139: 50 | D139: 0 | E139: 0
A140: Skyllevandsbehandling, inkl. UV-filter mv., Mek./EL | B140: m³/h. | C140: 25 | D140: 0 | E140: 0
A141: Skyllevandsbehandling, inkl. UV-filter mv., SRO | B141: m³/h. | C141: 10 | D141: 0 | E141: 0
A142: Nødstrømsanlæg på vandværk | B142: kW | C142: 25 | D142: 0 | E142: 0
A143: Elanlæg og SRO-anlæg - vandværk, Elanlæg | B143: m³/h. | C143: 25 | D143: 70 | E143: 70
A144: Elanlæg og SRO-anlæg - vandværk, SRO | B144: m³/h. | C144: 10 | D144: =70+50 -> 120 | E144: =70+50 -> 120
A145: Vandværk 4
A146: Beluftningsanlæg, iltningstrappe, Konstruktioner | B146: m³/h | C146: 50 | D146: 0
A147: Beluftningsanlæg, iltningstrappe, Mek./EL | B147: m³/h | C147: 25 | D147: 0
A148: Beluftningsanlæg, ika-beluftning, Konstruktioner | B148: m³/h | C148: 50 | D148: 0
A149: Beluftningsanlæg, ika-beluftning, Mek./EL | B149: m³/h | C149: 25 | D149: 0
A150: Beluftningsanlæg, bundbeluftbning, Konstruktioner | B150: m³/h | C150: 50 | D150: 0
A151: Beluftningsanlæg, bundbeluftbning, Mek./EL | B151: m³/h | C151: 25 | D151: 0
A152: Beluftningsanlæg, rislebakke, Konstruktioner | B152: m³/h | C152: 50 | D152: 0
A153: Beluftningsanlæg, rislebakke, Mek./EL | B153: m³/h | C153: 25 | D153: 0
A154: Beluftningsanlæg, kompressorbeluftning | B154: m³/h | C154: 25 | D154: 0
A155: Beluftningsanlæg, ren ilt | B155: m³/h | C155: 25 | D155: 0
A156: Behandlingsanlæg, kalk anlæg | B156: m³/h | C156: 25 | D156: 0
A157: Behandlingsanlæg, luddosering | B157: m³/h | C157: 25 | D157: 0
A158: Filteranlæg, åbne filtre, enkelt filtrering, Konstruktioner | B158: m³/h | C158: 50 | D158: 0
A159: Filteranlæg, åbne filtre, enkelt filtrering, Mek./EL | B159: m³/h | C159: 25 | D159: 0
A160: Filteranlæg, åbne filtre, dobbelt filtrering, Konstruktioner | B160: m³/h | C160: 50 | D160: 0
A161: Filteranlæg, åbne filtre, dobbelt filtrering, Mek./EL | B161: m³/h | C161: 25 | D161: 0
A162: Filteranlæg, trykfiltre, enkelt filtrering | B162: m³/h | C162: 25 | D162: 0
A163: Filteranlæg, trykfiltre, dobbelt filtrering | B163: m³/h | C163: 25 | D163: 0
A164: Rentvandsbeholder insitu støbt | B164: m³ | C164: 50 | D164: 0
A165: Rentvandsbeholder element | B165: m³ | C165: 50 | D165: 0
A166: Udpumpningsanlæg, rentvandspumper på vandværk | B166: m³/h | C166: 25 | D166: 0
A167: Udpumpningsanlæg, frekvensomformer | B167: kW | C167: 25 | D167: 0
A168: Udpumpningsanlæg, Hydrofor | B168: liter | C168: 25 | D168: 0
A169: Skyllevand-/slamhåndteringsanlæg - lukkede betonbeholdere | B169: m³ | C169: 50 | D169: 0
A170: Skyllevand-/slamhåndteringsanl. - åbne med faste sider/bund | B170: m³ | C170: 50 | D170: 0
A171: Skyllevand-/slamhåndteringsanlæg - jordbassiner | B171: m³ | C171: 50 | D171: 0
A172: Skyllevandsbehandling, inkl. UV-filter mv., Mek./EL | B172: m³/h. | C172: 25 | D172: 0
A173: Skyllevandsbehandling, inkl. UV-filter mv., SRO | B173: m³/h. | C173: 10 | D173: 0
A174: Nødstrømsanlæg på vandværk | B174: kW | C174: 25 | D174: 0
A175: Elanlæg og SRO-anlæg - vandværk, Elanlæg | B175: m³/h. | C175: 25 | D175: 0
A176: Elanlæg og SRO-anlæg - vandværk, SRO | B176: m³/h. | C176: 10 | D176: 0
A177: Vandværk 5
A178: Beluftningsanlæg, iltningstrappe, Konstruktioner | B178: m³/h | C178: 50 | D178: 0
A179: Beluftningsanlæg, iltningstrappe, Mek./EL | B179: m³/h | C179: 25 | D179: 0
A180: Beluftningsanlæg, ika-beluftning, Konstruktioner | B180: m³/h | C180: 50 | D180: 0
A181: Beluftningsanlæg, ika-beluftning, Mek./EL | B181: m³/h | C181: 25 | D181: 0
A182: Beluftningsanlæg, bundbeluftbning, Konstruktioner | B182: m³/h | C182: 50 | D182: 0
A183: Beluftningsanlæg, bundbeluftbning, Mek./EL | B183: m³/h | C183: 25 | D183: 0
A184: Beluftningsanlæg, rislebakke, Konstruktioner | B184: m³/h | C184: 50 | D184: 0
A185: Beluftningsanlæg, rislebakke, Mek./EL | B185: m³/h | C185: 25 | D185: 0
A186: Beluftningsanlæg, kompressorbeluftning | B186: m³/h | C186: 25 | D186: 0
A187: Beluftningsanlæg, ren ilt | B187: m³/h | C187: 25 | D187: 0
A188: Behandlingsanlæg, kalk anlæg | B188: m³/h | C188: 25 | D188: 0
A189: Behandlingsanlæg, luddosering | B189: m³/h | C189: 25 | D189: 0
A190: Filteranlæg, åbne filtre, enkelt filtrering, Konstruktioner | B190: m³/h | C190: 50 | D190: 0
A191: Filteranlæg, åbne filtre, enkelt filtrering, Mek./EL | B191: m³/h | C191: 25 | D191: 0
A192: Filteranlæg, åbne filtre, dobbelt filtrering, Konstruktioner | B192: m³/h | C192: 50 | D192: 0
A193: Filteranlæg, åbne filtre, dobbelt filtrering, Mek./EL | B193: m³/h | C193: 25 | D193: 0
A194: Filteranlæg, trykfiltre, enkelt filtrering | B194: m³/h | C194: 25 | D194: 0
A195: Filteranlæg, trykfiltre, dobbelt filtrering | B195: m³/h | C195: 25 | D195: 0
A196: Rentvandsbeholder insitu støbt | B196: m³ | C196: 50 | D196: 0
A197: Rentvandsbeholder element | B197: m³ | C197: 50 | D197: 0
A198: Udpumpningsanlæg, rentvandspumper på vandværk | B198: m³/h | C198: 25 | D198: 0
A199: Udpumpningsanlæg, frekvensomformer | B199: kW | C199: 25 | D199: 0
A200: Udpumpningsanlæg, Hydrofor | B200: liter | C200: 25 | D200: 0
A201: Skyllevand-/slamhåndteringsanlæg - lukkede betonbeholdere | B201: m³ | C201: 50 | D201: 0
... 215 more rows

Sheet Distributionsanlæg
A1: Distributionsanlæg | B1: Enhed | C1: Standard-levetid | D1: Samlet mængde per 31/12-2014 | E1: Samlet mængde per 31/12-2015 | F1: Bemærk-ninger
A3: Ledningsnet - Land
A4: Ledningsnet ≤ Ø50 mm | B4: meter | C4: 75 | D4: 33260.65 | E4: =33260.65+29.4 -> 33290.05
A5: Ø 50mm < Ledningsnet ≤ Ø110 mm | B5: meter | C5: 75 | D5: 194216.4336 | E5: 194216.4336
A6: Ø110 mm < Ledningsnet ≤ Ø 250 mm | B6: meter | C6: 75 | D6: 82220.72642 | E6: =82220.7264202842+7.88 -> 82228.60642
A7: Ø 250 mm < Ledningsnet ≤ Ø 500mm | B7: meter | C7: 75 | D7: 6952.81 | E7: =6952.81+3148 -> 10100.81
A8: Ledningsnet > Ø 500 mm | B8: meter | C8: 75 | D8: 0 | E8: 0
A9: Støbejernsledninger ≤ Ø50 mm | B9: meter | C9: 100 | D9: 0 | E9: 0
A10: Støbejernsledninger Ø 50mm < Ledningsnet ≤ Ø110 mm | B10: meter | C10: 100 | D10: 1769.5 | E10: 1769.5
A11: Støbejernsledninger Ø110 mm < Ledningsnet ≤ Ø 250 mm | B11: meter | C11: 100 | D11: 12596.2 | E11: 12596.2
A12: Støbejernsledninger Ø 250 mm < Ledningsnet ≤ Ø 500mm | B12: meter | C12: 100 | D12: 5508.2 | E12: 5508.2
A13: Støbejernsledninger Ledningsnet > Ø 500 mm | B13: meter | C13: 100 | D13: 0 | E13: 0
A14: Eternitledninger ≤ Ø50 mm | B14: meter | C14: 75 | D14: 0 | E14: 0
A15: Eternitledninger Ø 50mm < Ledningsnet ≤ Ø110 mm | B15: meter | C15: 75 | D15: 603.3 | E15: 603.3
A16: Eternitledninger Ø110 mm < Ledningsnet ≤ Ø 250 mm | B16: meter | C16: 75 | D16: 2 | E16: 2
A17: Eternitledninger Ø 250 mm < Ledningsnet ≤ Ø 500mm | B17: meter | C17: 75 | D17: 0 | E17: 0
A18: Eternitledninger Ledningsnet > Ø 500 mm | B18: meter | C18: 75 | D18: 0 | E18: 0
A19: Skelbrønd, Konstruktioner | B19: stk. | C19: 50 | D19: 0 | E19: 0
A20: Skelbrønd, Mek./EL | B20: stk. | C20: 15 | D20: 0 | E20: 0
A21: Inspektionsbrønd, Konstruktioner | B21: stk. | C21: 50 | D21: 1 | E21: 1
A22: Inspektionsbrønd, Mek./EL | B22: stk. | C22: 15 | D22: 1 | E22: 1
A23: Stik på ledningsnet, Konstruktioner | B23: stk. | C23: 75 | D23: 1333 | E23: =1333+2 -> 1335
A24: Stik på ledningsnet, Mek./EL | B24: stk. | C24: 75 | D24: 0 | E24: 0
A25: Ledningsnet - By | D25: 0
A26: Ledningsnet ≤ Ø50 mm | B26: meter | C26: 75 | D26: 8550.38 | E26: 8550.38
A27: Ø 50mm < Ledningsnet ≤ Ø110 mm | B27: meter | C27: 75 | D27: 125123.6961 | E27: =125123.696101376+513.48 -> 125637.1761
A28: Ø110 mm < Ledningsnet ≤ Ø 250 mm | B28: meter | C28: 75 | D28: 32809.0839 | E28: =32809.083898624+3 -> 32812.0839
A29: Ø 250 mm < Ledningsnet ≤ Ø 500mm | B29: meter | C29: 75 | D29: 700.1 | E29: 700.1
A30: Ledningsnet > Ø 500 mm | B30: meter | C30: 75 | D30: 0 | E30: 0
A31: Støbejernsledninger ≤ Ø50 mm | B31: meter | C31: 100 | D31: 0 | E31: 0
A32: Støbejernsledninger Ø 50mm < Ledningsnet ≤ Ø110 mm | B32: meter | C32: 100 | D32: 3045.67 | E32: 3045.67
A33: Støbejernsledninger Ø110 mm < Ledningsnet ≤ Ø 250 mm | B33: meter | C33: 100 | D33: 959 | E33: 959
A34: Støbejernsledninger Ø 250 mm < Ledningsnet ≤ Ø 500mm | B34: meter | C34: 100 | D34: 1672.9 | E34: 1672.9
A35: Støbejernsledninger Ledningsnet > Ø 500 mm | B35: meter | C35: 100 | D35: 0 | E35: 0
A36: Eternitledninger ≤ Ø50 mm | B36: meter | C36: 75 | D36: 187.4 | E36: 187.4
A37: Eternitledninger Ø 50mm < Ledningsnet ≤ Ø110 mm | B37: meter | C37: 75 | D37: 3097.35 | E37: 3097.35
A38: Eternitledninger Ø110 mm < Ledningsnet ≤ Ø 250 mm | B38: meter | C38: 75 | D38: 2209.4 | E38: 2209.4
A39: Eternitledninger Ø 250 mm < Ledningsnet ≤ Ø 500mm | B39: meter | C39: 75 | D39: 60.4 | E39: 60.4
A40: Eternitledninger Ledningsnet > Ø 500 mm | B40: meter | C40: 75 | D40: 0 | E40: 0
A41: Skelbrønd, Konstruktioner | B41: stk. | C41: 50 | D41: 0 | E41: 0
A42: Skelbrønd, Mek./EL | B42: stk. | C42: 15 | D42: 0 | E42: 0
A43: Inspektionsbrønd, Konstruktioner | B43: stk. | C43: 50 | E43: 0
A44: Inspektionsbrønd, Mek./EL | B44: stk. | C44: 15 | E44: 0
A45: Stik på ledningsnet, Konstruktioner | B45: stk. | C45: 75 | D45: 7188 | E45: =7188+29 -> 7217
A46: Stik på ledningsnet, Mek./EL | B46: stk. | C46: 75 | E46: 0
A47: Ledningsnet - City
A48: Ledningsnet ≤ Ø50 mm | B48: meter | C48: 75 | D48: 145.2 | E48: 145.2
A49: Ø 50mm < Ledningsnet ≤ Ø110 mm | B49: meter | C49: 75 | D49: 5571.315957 | E49: 5571.315957
A50: Ø110 mm < Ledningsnet ≤ Ø 250 mm | B50: meter | C50: 75 | D50: 2660.644043 | E50: 2660.644043
A51: Ø 250 mm < Ledningsnet ≤ Ø 500mm | B51: meter | C51: 75 | D51: 0 | E51: 0
A52: Ledningsnet > Ø 500 mm | B52: meter | C52: 75 | D52: 0 | E52: 0
A53: Støbejernsledninger ≤ Ø50 mm | B53: meter | C53: 100 | D53: 0 | E53: 0
A54: Støbejernsledninger Ø 50mm < Ledningsnet ≤ Ø110 mm | B54: meter | C54: 100 | D54: 82.2 | E54: 82.2
A55: Støbejernsledninger Ø110 mm < Ledningsnet ≤ Ø 250 mm | B55: meter | C55: 100 | D55: 4.5 | E55: 4.5
A56: Støbejernsledninger Ø 250 mm < Ledningsnet ≤ Ø 500mm | B56: meter | C56: 100 | D56: 0 | E56: 0
A57: Støbejernsledninger Ledningsnet > Ø 500 mm | B57: meter | C57: 100 | D57: 0 | E57: 0
A58: Eternitledninger ≤ Ø50 mm | B58: meter | C58: 75 | D58: 0 | E58: 0
A59: Eternitledninger Ø 50mm < Ledningsnet ≤ Ø110 mm | B59: meter | C59: 75 | D59: 80.1 | E59: 80.1
A60: Eternitledninger Ø110 mm < Ledningsnet ≤ Ø 250 mm | B60: meter | C60: 75 | D60: 388.8 | E60: 388.8
A61: Eternitledninger Ø 250 mm < Ledningsnet ≤ Ø 500mm | B61: meter | C61: 75 | D61: 0 | E61: 0
A62: Eternitledninger Ledningsnet > Ø 500 mm | B62: meter | C62: 75 | D62: 0 | E62: 0
A63: Skelbrønd, Konstruktioner | B63: stk. | C63: 50 | D63: 0 | E63: 0
A64: Skelbrønd, Mek./EL | B64: stk. | C64: 15 | D64: 0 | E64: 0
A65: Inspektionsbrønd, Konstruktioner | B65: stk. | C65: 50 | D65: 0 | E65: 0
A66: Inspektionsbrønd, Mek./EL | B66: stk. | C66: 15 | D66: 0 | E66: 0
A67: Stik på ledningsnet, Konstruktioner | B67: stk. | C67: 75 | D67: 467 | E67: 467
A68: Stik på ledningsnet, Mek./EL | B68: stk. | C68: 75 | D68: 0 | E68: 0
A69: Ledningsnet - Indre city
A70: Ledningsnet ≤ Ø50 mm | B70: meter | C70: 75 | D70: 0 | E70: 0
A71: Ø 50mm < Ledningsnet ≤ Ø110 mm | B71: meter | C71: 75 | D71: 0 | E71: 0
A72: Ø110 mm < Ledningsnet ≤ Ø 250 mm | B72: meter | C72: 75 | D72: 0 | E72: 0
A73: Ø 250 mm < Ledningsnet ≤ Ø 500mm | B73: meter | C73: 75 | D73: 0 | E73: 0
A74: Ledningsnet > Ø 500 mm | B74: meter | C74: 75 | D74: 0 | E74: 0
A75: Støbejernsledninger ≤ Ø50 mm | B75: meter | C75: 100 | D75: 0 | E75: 0
A76: Støbejernsledninger Ø 50mm < Ledningsnet ≤ Ø110 mm | B76: meter | C76: 100 | D76: 0 | E76: 0
A77: Støbejernsledninger Ø110 mm < Ledningsnet ≤ Ø 250 mm | B77: meter | C77: 100 | D77: 0 | E77: 0
A78: Støbejernsledninger Ø 250 mm < Ledningsnet ≤ Ø 500mm | B78: meter | C78: 100 | D78: 0 | E78: 0
A79: Støbejernsledninger Ledningsnet > Ø 500 mm | B79: meter | C79: 100 | D79: 0 | E79: 0
A80: Eternitledninger ≤ Ø50 mm | B80: meter | C80: 75 | D80: 0 | E80: 0
A81: Eternitledninger Ø 50mm < Ledningsnet ≤ Ø110 mm | B81: meter | C81: 75 | D81: 0 | E81: 0
A82: Eternitledninger Ø110 mm < Ledningsnet ≤ Ø 250 mm | B82: meter | C82: 75 | D82: 0 | E82: 0
A83: Eternitledninger Ø 250 mm < Ledningsnet ≤ Ø 500mm | B83: meter | C83: 75 | D83: 0 | E83: 0
A84: Eternitledninger Ledningsnet > Ø 500 mm | B84: meter | C84: 75 | D84: 0 | E84: 0
A85: Skelbrønd, Konstruktioner | B85: stk. | C85: 50 | D85: 0 | E85: 0
A86: Skelbrønd, Mek./EL | B86: stk. | C86: 15 | D86: 0 | E86: 0
A87: Inspektionsbrønd, Konstruktioner | B87: stk. | C87: 50 | D87: 0 | E87: 0
A88: Inspektionsbrønd, Mek./EL | B88: stk. | C88: 15 | D88: 0 | E88: 0
A89: Stik på ledningsnet, Konstruktioner | B89: stk. | C89: 75 | D89: 0 | E89: 0
A90: Stik på ledningsnet, Mek./EL | B90: stk. | C90: 75 | D90: 0 | E90: 0
A91: Ventiler
A92: Ventiler på ledningsnet ≤ Ø50 mm | B92: stk. | C92: 75 | D92: =8627+219 -> 8846 | E92: =8627+219+34 -> 8880
A93: Ventiler på Ø 50mm < Ledningsnet ≤ Ø110 mm | B93: stk. | C93: 75 | D93: =482+43 -> 525 | E93: =482+43+5 -> 530
A94: Ventiler på Ø110 mm < Ledningsnet ≤ Ø 250 mm | B94: stk. | C94: 75 | D94: =467+20 -> 487 | E94: =467+20 -> 487
A95: Ventiler på Ø 250 mm < Ledningsnet ≤ Ø 500mm | B95: stk. | C95: 75 | D95: =51+3 -> 54 | E95: =51+3+2 -> 56
A96: Ventiler på ledningsnet > Ø 500 mm | B96: stk. | C96: 75 | D96: 0 | E96: 0
A97: Pumpestationer, bygværker og bassiner 1
A98: Pumpestation (inkl. evt. hydrofor)/trykforøger, Konstruktioner | B98: m³/h | C98: 50 | D98: 12 | E98: 12
A99: Pumpestation (inkl. evt. hydrofor)/trykforøger, Mek./EL | B99: m³/h | C99: 25 | D99: 12 | E99: 12
A100: Pumpestation (inkl. evt. hydrofor)/trykforøger, SRO | B100: m³/h | C100: 10 | D100: 12 | E100: 12
A101: Beholderanlæg - højdebeholder | B101: m³ | C101: 50 | D101: 0 | E101: 0
A102: Beholderanlæg - vandtårn | B102: m³ | C102: 50 | D102: 0 | E102: 0
A103: Pumpestationer, bygværker og bassiner 2
A104: Pumpestation (inkl. evt. hydrofor)/trykforøger, Konstruktioner | B104: m³/h | C104: 50 | D104: 30 | E104: 30
A105: Pumpestation (inkl. evt. hydrofor)/trykforøger, Mek./EL | B105: m³/h | C105: 25 | D105: 30 | E105: 30
A106: Pumpestation (inkl. evt. hydrofor)/trykforøger, SRO | B106: m³/h | C106: 10 | D106: 30 | E106: 30
A107: Beholderanlæg - højdebeholder | B107: m³ | C107: 50 | D107: 0 | E107: 0
A108: Beholderanlæg - vandtårn | B108: m³ | C108: 50 | D108: 0 | E108: 0
A109: Pumpestationer, bygværker og bassiner 3
A110: Pumpestation (inkl. evt. hydrofor)/trykforøger, Konstruktioner | B110: m³/h | C110: 50 | D110: 130 | E110: 130
A111: Pumpestation (inkl. evt. hydrofor)/trykforøger, Mek./EL | B111: m³/h | C111: 25 | D111: 130 | E111: 130
A112: Pumpestation (inkl. evt. hydrofor)/trykforøger, SRO | B112: m³/h | C112: 10 | D112: 130 | E112: 130
A113: Beholderanlæg - højdebeholder | B113: m³ | C113: 50 | D113: 0 | E113: 0
A114: Beholderanlæg - vandtårn | B114: m³ | C114: 50 | D114: 0 | E114: 0
A115: Pumpestationer, bygværker og bassiner 4
A116: Pumpestation (inkl. evt. hydrofor)/trykforøger, Konstruktioner | B116: m³/h | C116: 50 | D116: 42 | E116: 42
A117: Pumpestation (inkl. evt. hydrofor)/trykforøger, Mek./EL | B117: m³/h | C117: 25 | D117: 42 | E117: 42
A118: Pumpestation (inkl. evt. hydrofor)/trykforøger, SRO | B118: m³/h | C118: 10 | D118: 42 | E118: 42
A119: Beholderanlæg - højdebeholder | B119: m³ | C119: 50 | D119: 0 | E119: 0
A120: Beholderanlæg - vandtårn | B120: m³ | C120: 50 | D120: 0 | E120: 0
A121: Pumpestationer, bygværker og bassiner 5
A122: Pumpestation (inkl. evt. hydrofor)/trykforøger, Konstruktioner | B122: m³/h | C122: 50 | D122: 320 | E122: 320
A123: Pumpestation (inkl. evt. hydrofor)/trykforøger, Mek./EL | B123: m³/h | C123: 25 | D123: 320 | E123: 320
A124: Pumpestation (inkl. evt. hydrofor)/trykforøger, SRO | B124: m³/h | C124: 10 | D124: 320 | E124: 320
A125: Beholderanlæg - højdebeholder | B125: m³ | C125: 50 | D125: 0 | E125: 0
A126: Beholderanlæg - vandtårn | B126: m³ | C126: 50 | D126: 0 | E126: 0
A127: Pumpestationer, bygværker og bassiner 6
A128: Pumpestation (inkl. evt. hydrofor)/trykforøger, Konstruktioner | B128: m³/h | C128: 50 | D128: 60 | E128: 60
A129: Pumpestation (inkl. evt. hydrofor)/trykforøger, Mek./EL | B129: m³/h | C129: 25 | D129: 60 | E129: 60
A130: Pumpestation (inkl. evt. hydrofor)/trykforøger, SRO | B130: m³/h | C130: 10 | D130: 60 | E130: 60
A131: Beholderanlæg - højdebeholder | B131: m³ | C131: 50 | D131: 0 | E131: 0
A132: Beholderanlæg - vandtårn | B132: m³ | C132: 50 | D132: 0 | E132: 0
A133: Pumpestationer, bygværker og bassiner 7
A134: Pumpestation (inkl. evt. hydrofor)/trykforøger, Konstruktioner | B134: m³/h | C134: 50 | D134: 60 | E134: 60
A135: Pumpestation (inkl. evt. hydrofor)/trykforøger, Mek./EL | B135: m³/h | C135: 25 | D135: 60 | E135: 60
A136: Pumpestation (inkl. evt. hydrofor)/trykforøger, SRO | B136: m³/h | C136: 10 | D136: 60 | E136: 60
A137: Beholderanlæg - højdebeholder | B137: m³ | C137: 50 | D137: 0 | E137: 0
A138: Beholderanlæg - vandtårn | B138: m³ | C138: 50 | D138: 0 | E138: 0
A139: Pumpestationer, bygværker og bassiner 8
A140: Pumpestation (inkl. evt. hydrofor)/trykforøger, Konstruktioner | B140: m³/h | C140: 50 | D140: 6 | E140: 6
A141: Pumpestation (inkl. evt. hydrofor)/trykforøger, Mek./EL | B141: m³/h | C141: 25 | D141: 6 | E141: 6
A142: Pumpestation (inkl. evt. hydrofor)/trykforøger, SRO | B142: m³/h | C142: 10 | D142: 6 | E142: 6
A143: Beholderanlæg - højdebeholder | B143: m³ | C143: 50 | D143: 0 | E143: 0
A144: Beholderanlæg - vandtårn | B144: m³ | C144: 50 | D144: 0 | E144: 0
A145: Pumpestationer, bygværker og bassiner 9
A146: Pumpestation (inkl. evt. hydrofor)/trykforøger, Konstruktioner | B146: m³/h | C146: 50 | D146: 0
A147: Pumpestation (inkl. evt. hydrofor)/trykforøger, Mek./EL | B147: m³/h | C147: 25 | D147: 0
A148: Pumpestation (inkl. evt. hydrofor)/trykforøger, SRO | B148: m³/h | C148: 10 | D148: 0
A149: Beholderanlæg - højdebeholder | B149: m³ | C149: 50 | D149: 0
A150: Beholderanlæg - vandtårn | B150: m³ | C150: 50 | D150: 0
A151: Pumpestationer, bygværker og bassiner 10
A152: Pumpestation (inkl. evt. hydrofor)/trykforøger, Konstruktioner | B152: m³/h | C152: 50 | D152: 0
A153: Pumpestation (inkl. evt. hydrofor)/trykforøger, Mek./EL | B153: m³/h | C153: 25 | D153: 0
A154: Pumpestation (inkl. evt. hydrofor)/trykforøger, SRO | B154: m³/h | C154: 10 | D154: 0
A155: Beholderanlæg - højdebeholder | B155: m³ | C155: 50 | D155: 0
A156: Beholderanlæg - vandtårn | B156: m³ | C156: 50 | D156: 0
A157: Pumpestation (inkl. evt. hydrofor)/trykforøger, Konstruktioner | B157: m³/h | C157: 50 | D157: 0
A158: Pumpestation (inkl. evt. hydrofor)/trykforøger, Mek./EL | B158: m³/h | C158: 25 | D158: 0
A159: Pumpestation (inkl. evt. hydrofor)/trykforøger, SRO | B159: m³/h | C159: 10 | D159: 0
A160: Beholderanlæg - højdebeholder | B160: m³ | C160: 50 | D160: 0
A161: Beholderanlæg - vandtårn | B161: m³ | C161: 50 | D161: 0
A162: Andre
A163: Afregningsmålere, mekaniske, | B163: stk. | C163: 8 | D163: 8612 | E163: 198
A164: Afregningsmålere, elektroniske ≤ Ø 110mm (Qn 10) | B164: stk. | C164: 10 | D164: 8732 | E164: 8671
A165: Afregningsmålere, elektroniske > Ø110 mm | B165: stk. | C165: 10 | D165: 0 | E165: 12
A166: SRO-brønd/kvarterbrønd/sektionsbrønd, Konstruktioner | B166: stk. | C166: 50 | D166: 0 | E166: 0
A167: SRO-brønd/kvarterbrønd/sektionsbrønd, Mek./EL | B167: stk. | C167: 15 | D167: 0 | E167: 0
A168: SRO-brønd/kvarterbrønd/sektionsbrønd, SRO | B168: stk. | C168: 10 | D168: 0 | E168: 0
A182: FEJL

Sheet Fællesfunktionsanlæg
A1: Fællesfunktionsanlæg | B1: Enhed | C1: Standard-levetid | D1: Samlet mængde per 31/12-2014 | E1: Samlet mængde per 31/12-2015 | F1: Bemærk-ninger
A3: Andre
A4: Køretøjer, personbil | B4: stk. | C4: 5 | D4: 1 | E4: =1-1 -> 0
A5: Køretøjer, små lastvogne (< 3.500 kg.) | B5: stk. | C5: 5 | D5: 5 | E5: =5-1 -> 4
A6: Køretøjer, store lastvogne (> 3.500 kg.) | B6: stk. | C6: 5 | D6: 0 | E6: 0
A7: Køretøjer, entreprenørmaskiner | B7: stk. | C7: 5 | D7: 0 | E7: 0
A8: Øvrige
A9: Solcelleanlæg | B9: KWh | C9: 25 | D9: 0 | E9: 0
A10: EDB, tablets og navigationsudstyr | B10: stk. | C10: 5 | D10: =1+2 -> 3 | E10: =1+2 -> 3
A11: Elektroniske kort | B11: stk. | C11: 5 | D11: 0 | E11: 0

Sheet Drop downliste (hidden)
B2: datakvalitet | C2: Serviceselskab | D2: Overheads | E2: Infrastrukturomlægninger | F2: Infrastruktur per år | G2: år 1 | H2: år 2 | I2: år 3 | J2: år 4 | K2: år 5
G3: 2010 | H3: 2011 | I3: 2012 | J3: 2013 | K3: 2014
B4: 1 | C4: ja | D4: Full-cost | E4: ja | F4: 0.1
B5: 2 | C5: nej | D5: Direct-cost | E5: nej | F5: 0.2
B6: 3 | D6: Nøgletalsfordeling | F6: 0.3
D7: Activity based cost | F7: 0.4
D8: Andet | F8: 0.5
F9: 0.6
F10: 0.7
F11: 0.8
F12: 0.9
F13: 1
